fUST/lending_fUST_20240702
["ID","MTS","AMOUNT","RATE_DAILY","PERIOD"]
[330864173,1719880638010,262.3278843,0.0001,2]
[330864175,1719880655728,208.75334757,0.00014999,2]
[330864178,1719880667430,1103.33519031,0.00015,2]
[330864179,1719880669821,728.38893683,0.00014999,2]
[330864190,1719880769666,701.9240243,0.00014888,2]
[330864202,1719881114152,174.55715225,0.00014999,2]
[330864205,1719881148329,-404.50002236,0.00015699,2]
[330864206,1719881148351,-1150.16281968,0.0001578,2]
[330864207,1719881148373,-500.0,0.00015799,2]
[330864208,1719881148394,-500.0,0.00015799,2]
[330864209,1719881148415,-500.0,0.00015799,2]
[330864210,1719881148436,-388.6131425,0.00015799,2]
[330864211,1719881148456,-500.0,0.00015799,2]
[330864212,1719881148476,-1094.45,0.00015799,2]
[330864213,1719881148495,-560.53,0.00015799,2]
[330864214,1719881148515,-500.0,0.00015799,2]
[330864215,1719881148535,-500.0,0.00015799,2]
[330864216,1719881148559,-500.0,0.00015799,2]
[330864217,1719881148579,-500.0,0.00015799,2]
[330864218,1719881148600,-500.0,0.00015799,2]
[330864219,1719881148622,-500.0,0.00015799,2]
[330864220,1719881148644,-500.0,0.00015799,2]
[330864221,1719881148664,-595.16,0.00015799,2]
[330864222,1719881148686,-500.0,0.00015799,2]
[330864223,1719881148708,-500.0,0.00015799,2]
[330864224,1719881148729,-500.0,0.00015799,2]
[330864225,1719881148750,-500.0,0.00015799,2]
[330864226,1719881148771,-500.0,0.00015799,2]
[330864227,1719881148796,-457.48401546,0.00015799,2]
[330864264,1719881434223,-316.23475701,0.00015799,2]
[330864265,1719881434236,-183.76524299,0.00015799,2]
[330864266,1719881434256,-500.0,0.00015799,2]
[330864267,1719881434266,-400.66820701,0.00015799,2]
[330864272,1719881438615,-99.33179299,0.00015799,2]
[330864273,1719881438626,-500.0,0.00015799,2]
[330864274,1719881438636,-500.0,0.00015799,2]
[330864275,1719881438646,-45.5484329,0.00015799,2]
[330864276,1719881438659,-454.4515671,0.00015799,2]
[330864277,1719881438669,-500.0,0.00015799,2]
[330864278,1719881438679,-500.0,0.00015799,2]
[330864279,1719881438688,-500.0,0.00015799,2]
[330864280,1719881438698,-581.71848521,0.00015799,2]
[330864284,1719881441835,-36.10151479,0.00015799,2]
[330864285,1719881441845,-660.1,0.00015799,2]
[330864286,1719881441856,-500.0,0.00015799,2]
[330864287,1719881441870,-500.0,0.00015799,2]
[330864288,1719881441880,-500.0,0.00015799,2]
[330864289,1719881441889,-500.0,0.00015799,2]
[330864290,1719881441898,-500.0,0.00015799,2]
[330864291,1719881441910,-500.0,0.00015799,2]
[330864292,1719881441919,-534.82,0.00015799,2]
[330864293,1719881441929,-500.0,0.00015799,2]
[330864294,1719881441941,-500.0,0.00015799,2]
[330864295,1719881441949,-620.27,0.00015799,2]
[330864296,1719881441959,-500.0,0.00015799,2]
[330864297,1719881441969,-500.0,0.00015799,2]
[330864298,1719881441979,-500.0,0.00015799,2]
[330864299,1719881441988,-500.0,0.00015799,2]
[330864300,1719881441998,-500.0,0.00015799,2]
[330864301,1719881442007,-665.0,0.00015799,2]
[330864302,1719881442017,-500.0,0.00015799,2]
[330864303,1719881442027,-530.41,0.00015799,2]
[330864304,1719881442037,-1064.57,0.00015799,2]
[330864305,1719881442047,-500.0,0.00015799,2]
[330864306,1719881442056,-631.1921414,0.00015799,2]
[330864307,1719881442071,-500.0,0.00015799,2]
[330864308,1719881442080,-500.0,0.00015799,2]
[330864309,1719881442093,-636.78,0.00015799,2]
[330864310,1719881442103,-500.0,0.00015799,2]
[330864311,1719881442112,-500.0,0.00015799,2]
[330864312,1719881442123,-807.91,0.00015799,2]
[330864313,1719881442133,-500.0,0.00015799,2]
[330864314,1719881442143,-500.0,0.00015799,2]
[330864315,1719881442152,-1114.23,0.00015799,2]
[330864316,1719881442161,-760.01,0.00015799,2]
[330864317,1719881442171,-500.0,0.00015799,2]
[330864318,1719881442180,-743.9,0.00015799,2]
[330864319,1719881442190,-500.0,0.00015799,2]
[330864320,1719881442199,-639.7,0.00015799,2]
[330864321,1719881442208,-500.0,0.00015799,2]
[330864322,1719881442218,-500.0,0.00015799,2]
[330864323,1719881442227,-500.0,0.00015799,2]
[330864324,1719881442236,-674.3,0.00015799,2]
[330864325,1719881442246,-500.0,0.00015799,2]
[330864326,1719881442256,-500.0,0.00015799,2]
[330864327,1719881442266,-500.0,0.00015799,2]
[330864328,1719881442275,-500.0,0.00015799,2]
[330864329,1719881442286,-500.0,0.00015799,2]
[330864330,1719881442295,-500.0,0.00015799,2]
[330864331,1719881442304,-500.0,0.00015799,2]
[330864332,1719881442318,-500.0,0.00015799,2]
[330864333,1719881442327,-851.66,0.00015799,2]
[330864334,1719881442336,-500.0,0.00015799,2]
[330864335,1719881442345,-500.0,0.00015799,2]
[330864336,1719881442355,-500.0,0.00015799,2]
[330864337,1719881442364,-500.0,0.00015799,2]
[330864338,1719881442373,-500.0,0.00015799,2]
[330864339,1719881442383,-500.0,0.00015799,2]
[330864340,1719881442392,-500.0,0.00015799,2]
[330864341,1719881442401,-500.0,0.00015799,2]
[330864342,1719881442411,-5665.11,0.00015799,2]
[330864343,1719881442420,-500.0,0.00015799,2]
[330864344,1719881442430,-500.0,0.00015799,2]
[330864345,1719881442439,-591.93,0.00015799,2]
[330864346,1719881442448,-500.0,0.00015799,2]
[330864347,1719881442458,-500.0,0.00015799,2]
[330864348,1719881442468,-500.0,0.00015799,2]
[330864349,1719881442477,-500.0,0.00015799,2]
[330864350,1719881442486,-500.0,0.00015799,2]
[330864351,1719881442495,-500.0,0.00015799,2]
[330864352,1719881442506,-500.0,0.00015799,2]
[330864353,1719881442515,-500.0,0.00015799,2]
[330864354,1719881442525,-9535.99,0.00015799,2]
[330864355,1719881442535,-1048.85,0.00015799,2]
[330864356,1719881442544,-500.0,0.00015799,2]
[330864357,1719881442554,-500.0,0.00015799,2]
[330864358,1719881442566,-500.0,0.00015799,2]
[330864359,1719881442575,-57.83253765,0.00015799,2]
[330864391,1719881446735,-588.58746235,0.00015799,2]
[330864392,1719881446745,-239.66992935,0.00015799,2]
[330864395,1719881447080,-277.81007065,0.00015799,2]
[330864396,1719881447089,-1503.01,0.00015799,2]
[330864397,1719881447099,-500.0,0.00015799,2]
[330864398,1719881447108,-500.0,0.00015799,2]
[330864399,1719881447117,-667.04,0.00015799,2]
[330864400,1719881447126,-500.0,0.00015799,2]
[330864401,1719881447135,-2208.73,0.00015799,2]
[330864402,1719881447145,-500.0,0.00015799,2]
[330864403,1719881447154,-500.0,0.00015799,2]
[330864404,1719881447163,-1343.77,0.00015799,2]
[330864405,1719881447172,-500.0,0.00015799,2]
[330864406,1719881447181,-558.01,0.00015799,2]
[330864407,1719881447191,-506.58,0.00015799,2]
[330864408,1719881447200,-500.0,0.00015799,2]
[330864409,1719881447209,-500.0,0.00015799,2]
[330864410,1719881447218,-1198.39,0.00015799,2]
[330864411,1719881447227,-333.12489151,0.00015799,2]
[330864425,1719881694600,718.951279,0.00014839,2]
[330864429,1719881840254,999.9933705,0.00014999,2]
[330864438,1719882070960,283.048721,0.00014888,2]
[330864528,1719882632028,-300.0,0.00015798,2]
[330864530,1719882632037,-500.0,0.00015799,2]
[330864532,1719882632047,-500.0,0.00015799,2]
[330864534,1719882632056,-2.0,0.00015799,2]
[330865505,1719882987668,200.33480446,0.00014999,2]
[330865628,1719883838391,-504.21463749,0.000155,2]
[330865630,1719883838402,-356.18295404,0.00015696,2]
[330865632,1719883838412,-928.04,0.00015796,2]
[330865634,1719883838422,-500.0,0.00015796,2]
[330865636,1719883838433,-1206.83804864,0.00015796,2]
[330865859,1719883843533,-233.55195136,0.00015796,2]
[330865860,1719883843542,-766.44141914,0.00015796,2]
[330865927,1719883933662,155.2247379,0.00014999,2]
[330865928,1719883935084,155.17043953,0.00014999,2]
[330865929,1719883936070,154.88383712,0.00014999,2]
[330865930,1719883941496,155.05923582,0.00014999,2]
[330865931,1719883963328,209.54723934,0.00014999,2]
[330865932,1719883964553,154.88383712,0.00014999,2]
[330865934,1719883982538,599.73966422,0.00014999,2]
[330865935,1719883985302,297.70460244,0.00014999,2]
[330865936,1719883990016,541.2512725,0.00014999,2]
[330865937,1719884008589,271.1806831,0.00014999,2]
[330865938,1719884011062,818.39219299,0.00014999,2]
[330865939,1719884014956,847.73918522,0.00014999,2]
[330865940,1719884017512,225.12979788,0.00014999,2]
[330865941,1719884018361,1790.41181726,0.00014999,2]
[330865942,1719884022764,162.82618418,0.00014999,2]
[330865943,1719884024278,372.28072715,0.00014999,2]
[330865944,1719884028806,567.26529089,0.00014999,2]
[330865945,1719884032995,209.0766601,0.00014999,2]
[330865946,1719884034638,196.07967372,0.00014999,2]
[330865947,1719884034681,193.18071048,0.00014999,2]
[330865949,1719884039292,176.74654804,0.00014999,2]
[330865950,1719884043615,504.0138245,0.00014999,2]
[330865951,1719884050209,19.40667474,0.00014999,2]
[330865952,1719884050234,140.86304191,0.00014999,2]
[330865953,1719884055327,169.03338578,0.00014999,2]
[330865954,1719884056550,154.99075164,0.00014999,2]
[330865955,1719884058116,530.50776108,0.00014999,2]
[330865956,1719884059621,9612.59517204,0.00014998,2]
[330865957,1719884070946,306.23736002,0.00014999,2]
[330865961,1719884091079,154.95839687,0.00014999,2]
[330865964,1719884122305,935.25685846,0.00014999,2]
[330865965,1719884143571,155.07394036,0.00014999,2]
[330865967,1719884165104,283.5245364,0.00014999,2]
[330865969,1719884197615,1118.51521192,0.00014999,2]
[330865971,1719884216956,9993.97853732,0.000125,2]
[330865973,1719884239950,323.66188023,0.0001,2]
[330865975,1719884285358,10000.0,0.00015,2]
[330865985,1719884438284,189.40377614,0.00015,2]
[330865986,1719884467099,155.01416632,0.00014999,2]
[330865987,1719884469412,155.21382447,0.00015,2]
[330865988,1719884474408,294.59280484,0.00014999,2]
[330865989,1719884480668,8664.70364154,0.00014998,2]
[330865990,1719884492260,155.503882,0.00014999,2]
[330865991,1719884492638,1111.65293776,0.00015,2]
[330865992,1719884495417,155.1583484,0.00014999,2]
[330865993,1719884503285,155.24388584,0.00014999,2]
[330865994,1719884512565,155.71287648,0.00014999,2]
[330865996,1719884551330,155.29293887,0.00014999,2]
[330866001,1719884807569,300.148,0.00015,2]
[330866003,1719884901038,276.0,0.00025,120]
[330866298,1719885041078,-311.66008482,0.00015694,2]
[330866300,1719885041088,-784.43818955,0.00015793,2]
[330867969,1719885058553,2117.93187801,0.00014999,2]
[330873861,1719885160027,155.02149623,0.00014999,2]
[330873863,1719885240269,532.97,0.00025,120]
[330873864,1719885256895,530.0,0.00025,120]
[330873865,1719885300450,-379.00845993,0.00015693,2]
[330873866,1719885300475,-997.16263602,0.00015694,2]
[330873867,1719885300500,-997.16263599,0.00015695,2]
[330873868,1719885300528,-997.16263599,0.00015696,2]
[330873869,1719885300553,-997.16263599,0.00015696,2]
[330873870,1719885300576,-997.16263599,0.00015697,2]
[330873871,1719885300600,-500.0,0.00015793,2]
[330873872,1719885300626,-659.73,0.00015793,2]
[330873873,1719885300650,-1038.76,0.00015793,2]
[330873874,1719885300676,-500.0,0.00015793,2]
[330873875,1719885300703,-846.93,0.00015793,2]
[330873876,1719885300728,-1386.46,0.00015793,2]
[330873877,1719885300755,-2701.72,0.00015793,2]
[330873878,1719885300778,-500.0,0.00015793,2]
[330873879,1719885300800,-2088.12,0.00015793,2]
[330873880,1719885300822,-775.31,0.00015793,2]
[330873881,1719885300844,-1289.44,0.00015793,2]
[330873882,1719885300866,-1069.02,0.00015793,2]
[330873883,1719885300889,-16450.66,0.00015793,2]
[330873884,1719885300913,-324.53818693,0.00015793,2]
[330873885,1719885300939,-500.0,0.00015793,2]
[330873886,1719885300965,-1149.39,0.00015793,2]
[330873887,1719885300988,-1502.25,0.00015793,2]
[330873888,1719885301011,-4974.45,0.00015793,2]
[330873889,1719885301033,-2727.64,0.00015793,2]
[330873890,1719885301057,-500.0,0.00015793,2]
[330873891,1719885301079,-500.0,0.00015793,2]
[330873892,1719885301102,-504.35492177,0.00015793,2]
[330873893,1719885301125,-500.0,0.00015793,2]
[330873894,1719885301148,-500.0,0.00015793,2]
[330873895,1719885301170,-500.0,0.00015793,2]
[330873896,1719885301193,-890.12,0.00015793,2]
[330873897,1719885301216,-729.35,0.00015793,2]
[330873898,1719885301244,-500.0,0.00015794,2]
[330873899,1719885301268,-440.95276782,0.00015794,2]
[330873900,1719885301291,-614.02,0.00015794,2]
[330873901,1719885301324,-500.0,0.00015794,2]
[330873902,1719885301352,-500.0,0.00015794,2]
[330873903,1719885301376,-500.0,0.00015794,2]
[330873904,1719885301399,-500.0,0.00015794,2]
[330873905,1719885301421,-500.0,0.00015794,2]
[330873906,1719885301444,-568.09,0.00015794,2]
[330873907,1719885301471,-500.0,0.00015794,2]
[330873908,1719885301497,-500.0,0.00015794,2]
[330873909,1719885301520,-500.0,0.00015794,2]
[330873910,1719885301544,-500.0,0.00015794,2]
[330873911,1719885301569,-500.0,0.00015794,2]
[330873912,1719885301592,-500.0,0.00015794,2]
[330873913,1719885301615,-500.0,0.00015794,2]
[330873914,1719885301638,-500.0,0.00015794,2]
[330873915,1719885301660,-403.87248357,0.00015794,2]
[330873924,1719885465977,357.2774606,0.00014795,2]
[330873925,1719885586585,2500.0,0.00015,10]
[330873926,1719885866198,19436.03705572,0.00015,2]
[330873927,1719885872258,7939.07504826,0.00014998,2]
[330873929,1719885907870,154.98769161,0.00014998,2]
[330873931,1719885942329,19363.64113502,0.00014998,2]
[330873933,1719886050211,159.89529767,0.00014998,2]
[330873934,1719886051576,361.19648159,0.00014999,2]
[330873935,1719886061250,1501.47264163,0.00014999,2]
[330873936,1719886089409,731.22809869,0.00014999,2]
[330873937,1719886142573,228.64,0.00025,120]
[330873938,1719886178891,527.63361591,0.00014999,2]
[330873945,1719886232646,-331.6324025,0.00015691,2]
[330873946,1719886232657,-500.0,0.00015791,2]
[330873947,1719886232668,-500.0,0.00015791,2]
[330873948,1719886232678,-540.22053665,0.00015791,2]
[330873949,1719886232899,-788.46946335,0.00015791,2]
[330873950,1719886232909,-500.0,0.00015791,2]
[330873951,1719886232919,-2001.11,0.00015791,2]
[330873952,1719886232930,-5438.37,0.00015791,2]
[330873953,1719886232940,-1235.71,0.00015791,2]
[330873954,1719886232950,-332.53682158,0.00015791,2]
[330873955,1719886232959,-109.86847033,0.00015791,2]
[330873985,1719886346324,155.14149741,0.00014999,2]
[330873986,1719886352136,155.51402623,0.00014999,2]
[330873987,1719886358253,694.53889848,0.00014999,2]
[330873988,1719886370696,155.14527986,0.00014999,2]
[330873989,1719886370779,2437.15463773,0.00015,2]
[330873990,1719886371931,241.6875338,0.00014999,2]
[330873991,1719886375766,1104.34897759,0.00015,2]
[330873992,1719886385143,2117.93187801,0.00014999,2]
[330873993,1719886390199,599.66496131,0.00014999,2]
[330873994,1719886533775,378.2533473,0.00015,2]
[330873995,1719886567020,179.56048351,0.00014999,2]
[330873998,1719886721174,2864.9322587,0.00014793,2]
[330874002,1719887084858,210.073543,0.00014791,2]
[330874003,1719887101606,16968.28876737,0.00014897,2]
[330874004,1719887181982,655.6160115,0.00014872,2]
[330874008,1719887420975,3000.0,0.00014764,2]
[330874052,1719887433116,-1125.59936189,0.0001535,2]
[330874076,1719887551883,154.88383712,0.00014999,2]
[330874077,1719887581092,287.98988418,0.00014999,2]
[330874078,1719887632992,210.0735431,0.0001479,2]
[330874079,1719887659187,200.01501858,0.00014999,2]
[330874080,1719887686898,155.537875,0.00014999,2]
[330874081,1719887838177,1310.35445338,0.00014999,2]
[330874082,1719887839657,7234.07750944,0.0001,2]
[330874084,1719887906575,822.4240436,0.0001479,2]
[330874090,1719888042035,436.19180205,0.0001479,2]
[330874091,1719888053511,817.01199646,0.0001479,2]
[330874094,1719888267937,155.14943238,0.00014999,2]
[330874095,1719888345115,2480.2885346,0.00014763,2]
[330874097,1719888599878,155.06576922,0.00014999,2]
[330874126,1719888632548,-753.99216168,0.00015212,2]
[330874128,1719888632558,-195.808394,0.000155,2]
[330874130,1719888632569,-304.191606,0.000155,2]
[330874132,1719888632579,-301.7104998,0.00015786,2]
[330874175,1719888638329,-0.38872233,0.00015786,2]
[330874176,1719888638339,-399.61127767,0.00015786,2]
[330874178,1719888638352,-100.38872233,0.00015786,2]
[330874179,1719888638362,-497.8785747,0.00015786,2]
[330874180,1719888638373,-489.58553881,0.00015786,2]
[330874181,1719888638383,-503.47956204,0.00015786,2]
[330874182,1719888638393,-251.67767224,0.00015786,2]
[330874197,1719888651321,309.6439095,0.00014999,2]
[330874199,1719888684825,600.70577698,0.00014999,2]
[330874200,1719888773274,154.88383712,0.00014999,2]
[330874211,1719888835770,155.30435443,0.00014999,2]
[330874227,1719888920639,320.23954076,0.00014999,2]
[330874231,1719888931372,6703.89321542,0.00014998,2]
[330874239,1719888946243,160.79212176,0.00014999,2]
[330874242,1719888951264,10567.57377167,0.00014998,2]
[330874250,1719888970105,725.60164127,0.00014999,2]
[330874259,1719889124482,309.69031046,0.00014999,2]
[330874260,1719889143990,542.96291549,0.000241,59]
[330874265,1719889286472,214.34527636,0.00014999,2]
[330874273,1719889473660,13563.6418934,0.00014788,2]
[330874296,1719889832205,219.1332923,0.00014787,2]
[330874304,1719889833896,-1249.59913604,0.00015437,2]
[330874546,1719889840904,-511.1056432,0.00015784,2]
[330874796,1719889843576,-341.9243568,0.00015784,2]
[330874798,1719889843586,-500.0,0.00015784,2]
[330874800,1719889843595,-393.1356432,0.00015784,2]
[330874802,1719889843609,-1210.9343568,0.00015784,2]
[330874804,1719889843618,-634.6156432,0.00015784,2]
[330881741,1719890179908,155.61034443,0.00014999,2]
[330881742,1719890324041,24900.0,0.00014759,2]
[330881756,1719890967424,28224.91162662,0.00015,2]
[330881794,1719891038815,-300.0,0.00015263,2]
[330881796,1719891038826,-10390.55956945,0.00015264,2]
[330881798,1719891038839,-48.57562022,0.00015264,2]
[330881799,1719891038849,-290.17835217,0.00015681,2]
[330881801,1719891038859,-500.0,0.0001578,2]
[330881803,1719891038870,-303.91950868,0.00015781,2]
[330881836,1719891041087,-503.14049132,0.00015781,2]
[330881838,1719891041097,-2589.15,0.00015781,2]
[330881841,1719891041107,-500.0,0.00015781,2]
[330881842,1719891041117,-211.2846948,0.00015781,2]
[330881844,1719891041130,-1281.10807788,0.00015781,2]
[330881845,1719891041143,-14272.82722732,0.00015781,2]
[330881846,1719891041152,-322.97128156,0.00015781,2]
[330881847,1719891041162,-1692.68,0.00015781,2]
[330881848,1719891041173,-5211.77,0.00015781,2]
[330881849,1719891041183,-3044.16,0.00015781,2]
[330881850,1719891041194,-500.0,0.00015781,2]
[330881851,1719891041203,-500.0,0.00015781,2]
[330881852,1719891041213,-817.49,0.00015781,2]
[330881853,1719891041223,-444.86121651,0.00015781,2]
[330881854,1719891041233,-4394.66,0.00015781,2]
[330881855,1719891041243,-151.0,0.00015782,2]
[330881856,1719891041253,-151.0,0.00015782,2]
[330881857,1719891041264,-151.0,0.00015782,2]
[330881858,1719891041274,-206.09294144,0.00015782,2]
[330881859,1719891041284,-1537.23,0.00015782,2]
[330881860,1719891041295,-1891.29,0.00015782,2]
[330881861,1719891041304,-1184.22,0.00015782,2]
[330881862,1719891041315,-1101.5,0.00015782,2]
[330881863,1719891041325,-4767.18,0.00015782,2]
[330881864,1719891041336,-500.0,0.00015782,2]
[330881865,1719891041346,-500.0,0.00015782,2]
[330881866,1719891041355,-1242.05,0.00015782,2]
[330881867,1719891041365,-500.0,0.00015782,2]
[330881868,1719891041376,-500.0,0.00015782,2]
[330881869,1719891041385,-1014.57,0.00015782,2]
[330881870,1719891041394,-386.18440971,0.00015782,2]
[330881880,1719891217097,1098.39,0.00010959,2]
[330881882,1719891227661,1053.92,0.00010959,2]
[330881883,1719891238179,878.26,0.00010959,2]
[330881884,1719891248972,731.89,0.00010959,2]
[330881885,1719891259564,609.91,0.00010959,2]
[330881886,1719891270282,508.25,0.00010959,2]
[330881888,1719891280808,508.25,0.00010959,2]
[330881889,1719891291402,338.84,0.00010959,2]
[330881891,1719891302174,282.36,0.00010959,2]
[330881892,1719891312659,235.3,0.00010959,2]
[330881894,1719891323414,196.09,0.00010959,2]
[330881895,1719891333930,163.41,0.00010959,2]
[330881898,1719891344446,817.05,0.00010959,2]
[330881899,1719891439963,3293.37687449,0.0001,2]
[330881970,1719892232599,-250.81599999,0.000155,2]
[330882161,1719892240926,-249.18400001,0.000155,2]
[330882162,1719892240935,-164.3576625,0.00015579,2]
[330882163,1719892240945,-264.7248786,0.00015679,2]
[330882164,1719892240955,-500.0,0.00015778,2]
[330882165,1719892240964,-500.0,0.00015778,2]
[330882166,1719892240973,-503.65186447,0.00015778,2]
[330882167,1719892240983,-505.03447168,0.00015778,2]
[330882168,1719892240992,-251.08887241,0.00015778,2]
[330882169,1719892241001,-504.72112275,0.00015778,2]
[330882170,1719892241010,-773.43,0.00015778,2]
[330882171,1719892241020,-2481.27,0.00015778,2]
[330882172,1719892241029,-503.34185757,0.00015778,2]
[330882173,1719892241039,-506.81045856,0.00015778,2]
[330882174,1719892241048,-503.19946116,0.00015778,2]
[330882175,1719892241058,-500.0,0.00015778,2]
[330882176,1719892241067,-574.01911848,0.00015778,2]
[330882177,1719892241076,-15721.09,0.00015778,2]
[330882178,1719892241086,-1622.15,0.00015778,2]
[330882179,1719892241095,-500.0,0.00015778,2]
[330882180,1719892241104,-2917.32,0.00015778,2]
[330882181,1719892241115,-503.74093966,0.00015778,2]
[330882182,1719892241124,-504.74927562,0.00015778,2]
[330882183,1719892241134,-504.90281223,0.00015778,2]
[330882184,1719892241143,-500.0,0.00015778,2]
[330882185,1719892241152,-500.0,0.00015778,2]
[330882186,1719892241162,-4994.61,0.00015778,2]
[330882187,1719892241171,-783.43,0.00015778,2]
[330882188,1719892241180,-500.0,0.00015778,2]
[330882189,1719892241189,-500.0,0.00015778,2]
[330882190,1719892241198,-500.0,0.00015778,2]
[330882191,1719892241207,-503.21357925,0.00015778,2]
[330882192,1719892241216,-500.0,0.00015778,2]
[330882193,1719892241225,-500.0,0.00015778,2]
[330882194,1719892241234,-632.24,0.00015779,2]
[330882195,1719892241244,-995.47,0.00015779,2]
[330882196,1719892241253,-743.01,0.00015779,2]
[330882197,1719892241262,-1024.47,0.00015779,2]
[330882198,1719892241272,-500.0,0.00015779,2]
[330882199,1719892241280,-500.0,0.00015779,2]
[330882200,1719892241290,-333.53688919,0.00015779,2]
[330882201,1719892241299,-698.96,0.00015779,2]
[330882202,1719892241314,-588.44,0.00015779,2]
[330882203,1719892241323,-500.0,0.00015779,2]
[330882204,1719892241332,-500.0,0.00015779,2]
[330882205,1719892241343,-579.76276247,0.00015779,2]
[330882206,1719892241353,-311.68677064,0.00015779,2]
[330882207,1719892241363,-500.0,0.00015779,2]
[330882208,1719892241372,-500.0,0.00015779,2]
[330882209,1719892241381,-645.68,0.00015779,2]
[330882210,1719892241392,-500.0,0.00015779,2]
[330882211,1719892241401,-500.0,0.00015779,2]
[330882212,1719892241410,-500.0,0.00015779,2]
[330882213,1719892241419,-296.79583121,0.00015779,2]
[330882310,1719892430896,404.24335831,0.00014999,2]
[330882313,1719892440488,156.0657845,0.00014999,2]
[330882314,1719892442103,1104.34897759,0.00015,2]
[330882315,1719892459185,155.08256877,0.00014999,2]
[330882316,1719892524043,155.07726348,0.00014999,2]
[330882319,1719892638247,378.05914759,0.00015,2]
[330882321,1719892715346,571.79,0.00014781,2]
[330882324,1719893298884,234.72222067,0.00014781,2]
[330882325,1719893309303,520.09262832,0.00014999,2]
[330882348,1719893432750,-231.63426881,0.00015676,2]
[330882349,1719893432760,-340.15573119,0.00015776,2]
[330882384,1719893437743,-210.83067888,0.00015775,2]
[330882386,1719893437754,-1133.02426881,0.00015776,2]
[330882388,1719893437764,-582.04415088,0.00015776,2]
[330882391,1719893437778,-517.08159086,0.00015776,2]
[330882393,1719893437789,-453.73028074,0.00015776,2]
[330882462,1719893440327,-259.63397752,0.00015776,2]
[330882463,1719893440336,-269.23680362,0.00015776,2]
[330882464,1719893440348,-253.70292945,0.00015776,2]
[330882485,1719893445877,-637.14026693,0.00015776,2]
[330882486,1719893445887,-500.0,0.00015776,2]
[330882487,1719893445899,-1055.6,0.00015776,2]
[330882488,1719893445908,-4014.21227666,0.00015776,2]
[330882489,1719893445935,-554.32772334,0.00015776,2]
[330882490,1719893445943,-829.5,0.00015776,2]
[330882491,1719893445954,-1190.3,0.00015776,2]
[330882492,1719893445963,-500.0,0.00015776,2]
[330882493,1719893445972,-2377.88,0.00015776,2]
[330882494,1719893445982,-500.0,0.00015776,2]
[330882495,1719893445991,-500.0,0.00015776,2]
[330882496,1719893446001,-15066.04,0.00015776,2]
[330882497,1719893446011,-500.0,0.00015776,2]
[330882498,1719893446021,-500.0,0.00015776,2]
[330882499,1719893446030,-500.0,0.00015776,2]
[330882500,1719893446039,-1554.56,0.00015776,2]
[330882501,1719893446048,-972.3,0.00015776,2]
[330882502,1719893446058,-2795.77,0.00015776,2]
[330882503,1719893446068,-1508.28,0.00015776,2]
[330882504,1719893446078,-500.0,0.00015776,2]
[330882505,1719893446088,-7196.61,0.00015776,2]
[330882506,1719893446098,-4786.5,0.00015776,2]
[330882507,1719893446108,-750.79,0.00015776,2]
[330882508,1719893446117,-500.0,0.00015776,2]
[330882509,1719893446126,-500.0,0.00015776,2]
[330882510,1719893446135,-610.48,0.00015776,2]
[330882511,1719893446144,-500.0,0.00015776,2]
[330882512,1719893446154,-605.9,0.00015777,2]
[330882513,1719893446163,-317.23639,0.00015777,2]